[Event "IM Marmaris Karia III 2018"]
[Site "Mentese Mugla"]
[Date "2018.10.26"]
[Round "1.5"]
[White "Alaz, Ahmet Efekan"]
[Black "Gevorgyan, Maria"]
[Result "1/2-1/2"]
[ECO "D05"]
[WhiteElo "2121"]
[BlackElo "2207"]
[Annotator "NA"]
[PlyCount "191"]
[EventDate "2018.10.26"]
[EventType "tourn"]
[EventCountry "TUR"]
[SourceTitle "playchess.com"]
[Source "ChessBase"]
[SourceQuality "1"]
[TimeControl "5400+30"]

{[%evp 12,171,0,6,10,-8,15,23,25,1,11,-30,-27,-32,-17,-30,-17,-10,-5,-8,-12,-11,-8,-12,-19,-11,-4,-8,-4,-9,-8,-7,-11,-4,-8,-11,-8,0,-3,-4,-15,-6,-2,-6,0,-8,0,0,0,0,0,0,0,0,0,0,0,0,0,0,0,0,0,0,0,0,0,0,0,-7,0,0,0,0,32767,32767,32767,32767,32767,0,0,0,0,0,0,0,0,0,0,0,0,0,0,0,0,0,0,-2,0,0,0,32767,32767,32767,32767,-8,-2,-123,-123,-21,-8,-4,0,0,0,0,0,-16,0,-105,32767,32767,32767,-124,-53,-105,-121,-116,-127,-92,32767,32767,32767,-8,0,32767,32767,-127,32767,32767,-92,-108,-92,32767,-8,-8,0,-121,-8,-497,-777,-629,-799,32767,32767,32767,32767,-287,-265,-304,0,-387]} 1. d4 {[%emt 0:00:30]} Nf6 {[%emt 0:00:30]} 2. Nf3 {[%emt 0:00:00]} e6 {[%emt 0:00:00]} 3. e3 {[%emt 0:00:00]} d5 {[%emt 0:00:00]} 4. Bd3 {[%emt 0:00:30]} c5 {[%emt 0:00:30]} 5. c3 {[%emt 0:00:00]} Nc6 {[%emt 0:00:00]} 6. Nbd2 {[%emt 0:00:00]} Be7 {[%emt 0:01:00]} 7. O-O {[%emt 0:00:30]} O-O {[%emt 0:00:00]} 8. dxc5 {[%emt 0:01:30] LiveBook: 30 Games D05: Damenbauernspiele (Colle-Aufbau)} (8. Ne5 Nd7 9. f4 f5 10. g4 Nf6 11. gxf5 exf5 12. Ndf3 Ne4 13. Qe2 Rf6 14. Kh1 Rh6 15. Rg1 Nxe5 16. Nxe5 {0-1 (62) Kramnik,V (2812)-Vachier Lagrave,M (2789) Paris 2016 CBM 173 [Mekhitarian,K]}) 8... a5 {[%emt 0:00:00]} 9. e4 {[%emt 0:00:30]} a4 {[%emt 0:01:30]} 10. Re1 $146 {[%emt 0:05:30]} ({Vorgänger:} 10. Qe2 Qc7 11. h3 h6 12. exd5 exd5 13. b4 axb3 14. Nxb3 Re8 15. Be3 Ne4 {0-1 (40) Schormann,C (2105)-Pontikis,A (2000) IECG email 2004}) 10... Bxc5 {[%emt 0:04:30]} 11. Qe2 {[%emt 0:05:30]} Ng4 {[%emt 0:06:30]} 12. Rf1 {[%emt 0:02:30]} Nce5 {[%emt 0:03:30]} 13. Nxe5 {[%emt 0:03:30]} Nxe5 {[%emt 0:00:30]} 14. exd5 {[%emt 0:01:30]} Nxd3 {[%emt 0:00:30]} 15. Qxd3 {[%emt 0:00:00]} Qxd5 {[%emt 0:00:30]} 16. Qxd5 {[%emt 0:03:00]} exd5 {[%emt 0:00:30]} 17. Nf3 {[%emt 0:06:30]} Re8 {[%emt 0:15:30]} 18. Bd2 {[%emt 0:13:30]} Ra6 {[%emt 0:07:30]} 19. Rfe1 {[%emt 0:06:30]} Rae6 {[%emt 0:05:30]} 20. Nd4 {[%emt 0:14:30]} Rxe1+ {[%emt 0:05:30]} 21. Rxe1 {[%emt 0:00:30]} Rxe1+ {[%emt 0:00:30]} 22. Bxe1 {[%emt 0:00:00]} Bd7 {[%emt 0:00:30]} 23. Bd2 {[%emt 0:03:00]} f6 {[%emt 0:00:30]} 24. Be3 {[%emt 0:01:30]} Kf7 {[%emt 0:00:30]} 25. Kf1 {[%emt 0:02:30]} g5 {[%emt 0:01:30]} 26. f3 {[%emt 0:04:30]} h5 {[%emt 0:04:30]} 27. Kf2 {[%emt 0:00:30]} Bd6 {[%emt 0:02:30]} 28. g3 {[%emt 0:01:30]} h4 {[%emt 0:05:30]} 29. a3 {[%emt 0:03:30]} Kg6 {[%emt 0:00:30]} 30. Kg2 {[%emt 0:01:33]} Kh5 {[%emt 0:06:30]} 31. Kf2 {[%emt 0:02:44]} f5 {[%emt 0:07:30]} 32. Ne2 {[%emt 0:01:46]} Bc7 {[%emt 0:03:25]} 33. Kg2 {[%emt 0:01:17]} Bc6 {[%emt 0:05:15]} 34. Kf2 {[%emt 0:01:02]} Bd6 {[%emt 0:00:44]} 35. Bb6 {[%emt 0:03:09]} Kg6 {[%emt 0:02:15]} 36. Nd4 {[%emt 0:01:20]} Bd7 {[%emt 0:00:19]} 37. Ne2 {[%emt 0:01:02]} hxg3+ {[%emt 0:00:41]} 38. hxg3 {[%emt 0:00:10]} Be7 {[%emt 0:01:12]} 39. Ke3 {[%emt 0:01:07]} Kf7 {[%emt 0:02:39]} 40. Nc1 {[%emt 0:01:35]} Bd6 {[%emt 0:01:33]} 41. Ne2 {[%emt 0:04:49]} Ke7 {[%emt 0:03:10]} 42. f4 {[%emt 0:00:53]} Bb5 {[%emt 0:01:47]} 43. Nd4 {[%emt 0:00:26]} gxf4+ {[%emt 0:00:10]} 44. gxf4 {[%emt 0:00:08]} Bd7 {[%emt 0:00:02]} 45. Nf3 {[%emt 0:01:09]} Ke6 {[%emt 0:02:35]} 46. Ne1 {[%emt 0:02:44]} Kf6 {[%emt 0:01:02]} 47. Nd3 {[%emt 0:00:49]} Bb5 {[%emt 0:00:02]} 48. Ne1 {[%emt 0:01:17]} Kg6 {[%emt 0:00:55]} 49. Kf3 {[%emt 0:00:38]} Be7 {[%emt 0:00:41]} 50. Nc2 {[%emt 0:00:32]} Bd3 {[%emt 0:00:43]} 51. Nd4 {[%emt 0:00:51]} Kh5 {[%emt 0:01:02]} 52. Ne6 {[%emt 0:00:38]} Be4+ {[%emt 0:00:25]} 53. Ke3 {[%emt 0:00:16]} Kg4 {[%emt 0:00:27]} 54. Bd8 {[%emt 0:00:54]} Bd6 {[%emt 0:00:17]} 55. Bc7 {[%emt 0:00:17]} Be7 {[%emt 0:00:46]} 56. Bd8 {[%emt 0:00:43]} Bxd8 {[%emt 0:00:30]} 57. Nxd8 {[%emt 0:00:03]} d4+ {[%emt 0:00:00]} 58. Kxd4 {[%emt 0:00:53]} Kxf4 {[%emt 0:00:01]} 59. c4 {[%emt 0:00:36]} (59. Ne6+ $11 Kg4 60. Ke5) 59... Kg3 {[%emt 0:01:22]} 60. Ne6 {[%emt 0:00:31] [#]} Bc6 {[%emt 0:00:24]} ({Better is} 60... Bb1 $1 $17 61. Ke5 Kg4) 61. Ke3 {[%emt 0:00:36]} b6 {[%emt 0:01:00]} 62. Nf4 $1 {[%emt 0:00:20]} Bb7 {[%emt 0:00:11]} 63. Nh5+ {[%emt 0:00:33]} Kg4 64. Nf4 {[%emt 0:00:16]} Ba6 {[%emt 0:00:53]} 65. Ng6 {[%emt 0:00:45]} (65. Nd5 $1 $11) 65... Kg3 {[%emt 0:00:15]} 66. Nf4 {[%emt 0:00:34]} Bxc4 {[%emt 0:00:05]} 67. Nh5+ $1 {[%emt 0:00:16]} Kg4 {[%emt 0:00:01]} 68. Nf4 {[%emt 0:00:19]} Bf7 {[%emt 0:01:20]} 69. Nd3 {[%emt 0:00:24]} Be8 {[%emt 0:00:11]} 70. Ne5+ {[%emt 0:00:39]} Kg3 {[%emt 0:00:04]} 71. Nd3 {[%emt 0:00:10]} Kg2 {[%emt 0:00:03]} 72. Ne5 {[%emt 0:01:10]} Kg3 {[%emt 0:00:53]} 73. Nd3 {[%emt 0:00:08]} Bc6 {[%emt 0:00:25]} 74. Nf4 {[%emt 0:00:17]} Bb5 {[%emt 0:00:04]} 75. Nd5 {[%emt 0:00:30]} Bd7 {[%emt 0:01:07]} 76. Nf4 {[%emt 0:00:27]} Bc6 {[%emt 0:00:04]} 77. Ne2+ {[%emt 0:00:00]} Kg2 {[%emt 0:01:15]} ({Better is} 77... Kg4 $17 78. Nf4 b5) 78. Nd4 {[%emt 0:00:00]} Bd7 {[%emt 0:00:18]} 79. Ne2 {[%emt 0:02:07] [#]} (79. Kf4 $11) 79... Kf1 {[%emt 0:00:04]} (79... b5 $1 $17 80. Kf4 Kf1) 80. Nc3 $2 {[%emt 0:00:29]} (80. Nd4 $11 {und Weiss muss sich keine Sorgen machen.}) 80... Ke1 {[%emt 0:00:19]} 81. Nd5 {[%emt 0:00:32]} b5 {[%emt 0:00:02]} 82. Nf4 {[%emt 0:00:32]} Kd1 {[%emt 0:00:35]} 83. Kd3 {[%emt 0:00:02]} Bc6 {[%emt 0:00:07]} 84. Kc3 {[%emt 0:00:50]} Be8 {[%emt 0:02:15]} 85. b3 {[%emt 0:00:39]} axb3 {[%emt 0:01:08]} 86. Kxb3 $19 {[%emt 0:00:06]} Kd2 {[%emt 0:00:04]} 87. Kb2 {[%emt 0:00:47]} Ke3 {[%emt 0:00:34]} 88. Nd5+ {[%emt 0:00:29]} Kd4 {[%emt 0:00:28]} 89. Nf4 {[%emt 0:00:39]} Bf7 {[%emt 0:00:10]} 90. Kc2 {[%emt 0:00:21]} Ke3 {[%emt 0:00:44]} 91. Ng2+ {[%emt 0:00:35]} Kf3 {[%emt 0:01:19]} 92. Nh4+ {[%emt 0:00:24]} Kg4 {[%emt 0:00:35]} 93. Nxf5 {[%emt 0:00:32]} Kxf5 {[%emt 0:00:15]} 94. Kc3 {[%emt 0:00:02]} Ke4 {[%emt 0:00:30]} 95. a4 {[%emt 0:00:32]} bxa4 {[%emt 0:00:03]} 96. Kb2 {[%emt 0:00:06]} 1/2-1/2

[Event "IM Marmaris Karia III 2018"]
[Site "Mentese Mugla"]
[Date "2018.10.25"]
[Round "2.3"]
[White "Rzayev, Bahruz"]
[Black "Guseynov, Alihan"]
[Result "1/2-1/2"]
[ECO "B14"]
[WhiteElo "2381"]
[BlackElo "2284"]
[Annotator "NA"]
[PlyCount "60"]
[EventDate "2018.10.26"]
[EventType "tourn"]
[EventCountry "TUR"]
[SourceTitle "playchess.com"]
[Source "ChessBase"]
[SourceQuality "1"]
[TimeControl "5400+30"]

1. e4 {[%emt 0:00:30]} c6 {[%emt 0:00:30]} 2. d4 {[%emt 0:00:30]} d5 {[%emt 0:00:00]} 3. exd5 {[%emt 0:00:30]} cxd5 {[%emt 0:00:00]} 4. c4 {[%emt 0:00:00]} Nf6 {[%emt 0:00:30]} 5. Nc3 {[%emt 0:00:00]} e6 {[%emt 0:00:30]} 6. Nf3 {[%emt 0:00:30]} Bb4 {[%emt 0:00:30]} 7. a3 {[%emt 0:01:30]} Bxc3+ {[%emt 0:00:00]} 8. bxc3 {[%emt 0:00:30]} O-O {[%emt 0:00:00]} 9. c5 {[%emt 0:02:30]} b6 {[%emt 0:03:30]} 10. cxb6 {[%emt 0:00:30]} axb6 {[%emt 0:00:30]} 11. Bd3 {[%emt 0:00:00]} Ba6 {[%emt 0:00:00]} 12. O-O {[%emt 0:01:00]} Qc7 {[%emt 0:02:00]} 13. Bxa6 {[%emt 0:00:30]} Rxa6 {[%emt 0:00:30]} 14. Qd3 {[%emt 0:01:30]} Rc8 {[%emt 0:01:30]} 15. Bb2 {[%emt 0:06:30]} h6 {[%emt 0:02:30]} 16. Ne5 {[%emt 0:00:30]} Qb7 {[%emt 0:02:30]} 17. c4 {[%emt 0:01:30]} dxc4 {[%emt 0:00:30]} 18. Nxc4 {[%emt 0:00:00]} b5 {[%emt 0:01:30]} 19. Ne3 {[%emt 0:00:00]} Nbd7 {[%emt 0:00:30]} 20. Rfc1 {[%emt 0:00:30]} Rxc1+ {[%emt 0:00:30]} 21. Rxc1 {[%emt 0:00:30]} Rc6 {[%emt 0:00:30]} 22. Rxc6 {[%emt 0:00:00]} Qxc6 {[%emt 0:00:00]} 23. Qc2 {[%emt 0:00:00]} Qxc2 {[%emt 0:00:00]} 24. Nxc2 {[%emt 0:00:00]} Nb6 {[%emt 0:00:30]} 25. Kf1 {[%emt 0:00:00]} Kf8 {[%emt 0:00:00]} 26. Ke2 {[%emt 0:00:00]} Ke7 {[%emt 0:00:00]} 27. Kd3 {[%emt 0:00:00]} Nfd5 {[%emt 0:00:30]} 28. g3 {[%emt 0:00:30]} h5 {[%emt 0:00:00]} 29. Bc1 {[%emt 0:00:00]} g6 {[%emt 0:00:00]} 30. h4 {[%emt 0:00:00]} Kd7 {[%emt 0:00:00]} 1/2-1/2

[Event "IM Marmaris Karia III 2018"]
[Site "Mentese Mugla"]
[Date "2018.10.25"]
[Round "2.4"]
[White "Gevorgyan, Maria"]
[Black "Gasanov, Zaur"]
[Result "1-0"]
[ECO "B17"]
[WhiteElo "2207"]
[BlackElo "2195"]
[Annotator "NA"]
[PlyCount "99"]
[EventDate "2018.10.26"]
[EventType "tourn"]
[EventCountry "TUR"]
[SourceTitle "playchess.com"]
[Source "ChessBase"]
[SourceQuality "1"]
[TimeControl "5400+30"]

1. e4 {[%emt 0:00:30]} c6 {[%emt 0:00:30]} 2. d4 {[%emt 0:00:00]} d5 {[%emt 0:00:00]} 3. Nc3 {[%emt 0:00:00]} dxe4 {[%emt 0:00:00]} 4. Nxe4 {[%emt 0:00:00]} Nd7 {[%emt 0:00:30]} 5. Nf3 {[%emt 0:00:00]} Ngf6 {[%emt 0:00:30]} 6. Nxf6+ {[%emt 0:00:30]} Nxf6 {[%emt 0:00:00]} 7. Ne5 {[%emt 0:00:00]} Be6 {[%emt 0:00:00]} 8. c3 {[%emt 0:06:00]} g6 {[%emt 0:01:30]} 9. Be2 {[%emt 0:02:30]} Bg7 {[%emt 0:00:30]} 10. Bd2 {[%emt 0:01:30]} O-O {[%emt 0:02:30]} 11. h4 {[%emt 0:02:30]} h5 {[%emt 0:05:30]} 12. g4 {[%emt 0:04:30]} hxg4 {[%emt 0:05:30]} 13. Nxg4 {[%emt 0:03:30]} Nxg4 {[%emt 0:01:30]} 14. Bxg4 {[%emt 0:00:30]} Bd5 {[%emt 0:00:30]} 15. Rh3 {[%emt 0:04:30]} e5 {[%emt 0:06:30]} 16. dxe5 {[%emt 0:00:30]} Bxe5 {[%emt 0:00:30]} 17. Kf1 {[%emt 0:00:30]} f5 {[%emt 0:27:30]} 18. Be2 {[%emt 0:02:30]} Kg7 {[%emt 0:03:30]} 19. c4 {[%emt 0:26:30]} Be4 {[%emt 0:08:30]} 20. f3 {[%emt 0:13:30]} Bd3 {[%emt 0:02:30]} 21. f4 {[%emt 0:00:30]} Bxe2+ {[%emt 0:03:30]} 22. Qxe2 {[%emt 0:00:30]} Bf6 {[%emt 0:06:30]} 23. h5 {[%emt 0:06:30]} Rh8 {[%emt 0:00:30]} 24. Rg3 {[%emt 0:00:30]} Rh6 {[%emt 0:00:30]} 25. Rd1 {[%emt 0:00:30]} Qe8 {[%emt 0:00:30]} 26. Re3 {[%emt 0:00:30]} Qf7 {[%emt 0:01:30]} 27. Bc3 {[%emt 0:09:23]} Kf8 {[%emt 0:02:55]} 28. Rd6 {[%emt 0:00:56]} gxh5 {[%emt 0:06:00]} 29. Ree6 {[%emt 0:04:14]} Bxc3 {[%emt 0:00:53]} 30. Rxh6 {[%emt 0:00:05]} Bg7 {[%emt 0:00:26]} 31. Rhe6 {[%emt 0:00:36]} h4 {[%emt 0:00:24]} 32. Qd3 {[%emt 0:02:17]} Kg8 {[%emt 0:03:04]} 33. Re2 {[%emt 0:00:08]} Kh8 {[%emt 0:00:35]} 34. Rd7 {[%emt 0:00:41]} Qf6 {[%emt 0:01:23]} 35. Rd6 {[%emt 0:01:18]} Qf7 {[%emt 0:00:33]} 36. Rd8+ {[%emt 0:00:09]} Rxd8 {[%emt 0:00:11]} 37. Qxd8+ {[%emt 0:00:06]} Kh7 {[%emt 0:00:08]} 38. Qxh4+ {[%emt 0:00:04]} Kg8 {[%emt 0:00:05]} 39. Qd8+ {[%emt 0:01:31]} Kh7 {[%emt 0:00:16]} 40. Rh2+ {[%emt 0:00:03]} Bh6 {[%emt 0:00:15]} 41. b3 {[%emt 0:00:05]} Qg7 {[%emt 0:00:45]} 42. Rd2 {[%emt 0:01:16]} Qg4 {[%emt 0:02:14]} 43. Qd7+ {[%emt 0:01:43]} Kh8 {[%emt 0:01:29]} 44. Qe8+ {[%emt 0:00:03]} Qg8 {[%emt 0:01:09]} 45. Qh5 {[%emt 0:03:46]} Qe6 {[%emt 0:00:28]} 46. Re2 {[%emt 0:00:36]} Qf6 {[%emt 0:01:44]} 47. Qe8+ {[%emt 0:01:14]} Kh7 {[%emt 0:00:11]} 48. Qe7+ {[%emt 0:00:54]} Bg7 {[%emt 0:00:10]} 49. Qxf6 {[%emt 0:00:13]} Bxf6 {[%emt 0:00:07]} 50. Rd2 {[%emt 0:00:00]} 1-0

[Event "IM Marmaris Karia III 2018"]
[Site "Mentese Mugla"]
[Date "2018.10.27"]
[Round "4.1"]
[White "Rzayev, Bahruz"]
[Black "Eminov, Orkhan"]
[Result "1/2-1/2"]
[ECO "C68"]
[WhiteElo "2381"]
[BlackElo "2343"]
[Annotator "NA"]
[PlyCount "39"]
[EventDate "2018.10.26"]
[EventType "tourn"]
[EventCountry "TUR"]
[SourceTitle "playchess.com"]
[Source "ChessBase"]
[SourceQuality "1"]
[TimeControl "5400+30"]

1. e4 {[%emt 0:01:30]} e5 {[%emt 0:02:30]} 2. Nf3 {[%emt 0:00:00]} Nc6 {[%emt 0:01:30]} 3. Bb5 {[%emt 0:01:00]} a6 {[%emt 0:00:30]} 4. Bxc6 {[%emt 0:01:30]} dxc6 {[%emt 0:03:30]} 5. O-O {[%emt 0:02:30]} Qd6 {[%emt 0:00:30]} 6. d4 {[%emt 0:00:30]} exd4 {[%emt 0:01:30]} 7. Qxd4 {[%emt 0:00:30]} Qxd4 {[%emt 0:00:30]} 8. Nxd4 {[%emt 0:00:00]} Bc5 {[%emt 0:00:00]} 9. Be3 {[%emt 0:00:00]} Bb6 {[%emt 0:02:00]} 10. Nc3 {[%emt 0:01:30]} Ne7 {[%emt 0:00:00]} 11. Rad1 {[%emt 0:00:00]} Bd7 {[%emt 0:00:00]} 12. h3 {[%emt 0:00:00]} O-O-O {[%emt 0:00:30]} 13. f4 {[%emt 0:00:30]} Rhe8 {[%emt 0:00:30]} 14. Rfe1 $15 {[%emt 0:00:00]} Kb8 {[%emt 0:00:30]} 15. Kh2 {[%emt 0:00:00]} Bc8 {[%emt 0:00:30]} 16. Bg1 {[%emt 0:00:30]} Bd7 {[%emt 0:00:00]} 17. Be3 {[%emt 0:00:30]} Bc8 {[%emt 0:00:00]} 18. Bg1 {[%emt 0:00:00]} Bd7 {[%emt 0:00:30]} 19. Be3 {[%emt 0:00:00]} Bc8 {[%emt 0:00:30]} 20. Bg1 {[%emt 0:00:30]} 1/2-1/2

[Event "IM Marmaris Karia III 2018"]
[Site "Mentese Mugla"]
[Date "2018.10.27"]
[Round "4.2"]
[White "Gevorgyan, Maria"]
[Black "Dedebas, Emre Emin"]
[Result "1/2-1/2"]
[ECO "C85"]
[WhiteElo "2207"]
[BlackElo "2302"]
[Annotator "NA"]
[PlyCount "94"]
[EventDate "2018.10.26"]
[EventType "tourn"]
[EventCountry "TUR"]
[SourceTitle "playchess.com"]
[Source "ChessBase"]
[SourceQuality "1"]
[TimeControl "5400+30"]

1. e4 {[%emt 0:00:30]} e5 {[%emt 0:00:30]} 2. Nf3 {[%emt 0:00:00]} Nc6 {[%emt 0:00:00]} 3. Bb5 {[%emt 0:00:00]} a6 {[%emt 0:00:00]} 4. Ba4 {[%emt 0:00:00]} Nf6 {[%emt 0:00:00]} 5. O-O {[%emt 0:00:00]} Be7 {[%emt 0:00:00]} 6. Bxc6 {[%emt 0:00:00]} dxc6 {[%emt 0:00:30]} 7. d3 {[%emt 0:00:00]} Nd7 {[%emt 0:02:30]} 8. Nbd2 {[%emt 0:00:30]} O-O {[%emt 0:01:30]} 9. Nc4 {[%emt 0:00:00]} f6 {[%emt 0:00:30]} 10. Nh4 {[%emt 0:00:00]} Nc5 {[%emt 0:11:30]} 11. Nf5 {[%emt 0:00:30]} Bxf5 $11 {[%emt 0:05:30]} 12. exf5 {[%emt 0:00:30]} Re8 {[%emt 0:01:30]} 13. Qg4 {[%emt 0:05:30]} Bf8 {[%emt 0:00:30]} 14. Re1 {[%emt 0:06:30]} Qd5 {[%emt 0:03:30]} 15. Be3 {[%emt 0:05:30]} Rad8 {[%emt 0:03:30]} 16. b3 {[%emt 0:00:30]} b6 {[%emt 0:08:30]} 17. Rad1 {[%emt 0:01:30]} Nb7 {[%emt 0:03:30]} 18. a4 {[%emt 0:20:30]} Qd7 {[%emt 0:04:30]} 19. Bc1 {[%emt 0:05:30]} Bc5 {[%emt 0:08:30]} 20. Be3 {[%emt 0:06:30]} Bf8 {[%emt 0:01:30]} 21. Qf3 {[%emt 0:03:30]} Qd5 {[%emt 0:05:30]} 22. Qh5 {[%emt 0:01:30]} Qd7 {[%emt 0:05:30]} 23. Ra1 {[%emt 0:12:30]} Bb4 {[%emt 0:03:30]} 24. Bd2 {[%emt 0:00:30]} Bxd2 {[%emt 0:02:30]} 25. Nxd2 {[%emt 0:00:30]} Nd6 {[%emt 0:00:30]} 26. g4 {[%emt 0:00:00]} a5 {[%emt 0:03:30]} 27. Re3 {[%emt 0:01:00]} Qf7 {[%emt 0:00:30]} 28. Qxf7+ {[%emt 0:02:30]} Kxf7 {[%emt 0:03:30]} 29. Kg2 {[%emt 0:00:30]} Nc8 {[%emt 0:00:30]} 30. Re4 {[%emt 0:04:30]} Ne7 {[%emt 0:00:30]} 31. b4 {[%emt 0:00:30]} axb4 {[%emt 0:03:28]} 32. Rxb4 {[%emt 0:00:30]} c5 {[%emt 0:01:29]} 33. Rc4 {[%emt 0:02:30]} Nc6 {[%emt 0:06:34]} 34. Nb3 {[%emt 0:00:00]} Nd4 {[%emt 0:03:19]} 35. Nd2 {[%emt 0:02:00]} Ra8 {[%emt 0:02:15]} 36. Re1 {[%emt 0:05:53]} Ra7 {[%emt 0:01:06]} 37. f4 {[%emt 0:01:33]} exf4 {[%emt 0:02:30]} 38. Rxe8 {[%emt 0:00:06]} Kxe8 {[%emt 0:00:04]} 39. c3 {[%emt 0:06:19]} Nc6 {[%emt 0:00:24]} 40. Rxf4 {[%emt 0:00:25]} Ne5 {[%emt 0:01:01]} 41. d4 {[%emt 0:01:14]} cxd4 {[%emt 0:00:39]} 42. Rxd4 {[%emt 0:00:18]} c5 {[%emt 0:01:26]} 43. Re4 {[%emt 0:00:37]} Kd7 {[%emt 0:01:56]} 44. g5 {[%emt 0:00:08]} Kc6 {[%emt 0:00:32]} 45. gxf6 {[%emt 0:01:25]} gxf6 {[%emt 0:00:03]} 46. Rh4 {[%emt 0:02:02]} Rg7+ {[%emt 0:00:49]} 47. Kf2 {[%emt 0:01:36]} Rg4 {[%emt 0:00:38]} 1/2-1/2

[Event "IM Marmaris Karia III 2018"]
[Site "Mentese Mugla"]
[Date "2018.10.29"]
[Round "8.1"]
[White "Bagaturov, Giorgi"]
[Black "Eminov, Orkhan"]
[Result "0-1"]
[ECO "E63"]
[WhiteElo "2417"]
[BlackElo "2343"]
[Annotator "NA RC"]
[PlyCount "142"]
[EventDate "2018.10.26"]
[EventType "tourn"]
[EventCountry "TUR"]
[SourceTitle "playchess.com"]
[Source "ChessBase"]
[SourceQuality "1"]
[TimeControl "5400+30"]

1. d4 {[%emt 0:00:30]} Nf6 {[%emt 0:00:30]} 2. Nf3 {[%emt 0:00:00]} g6 {[%emt 0:00:30]} 3. c4 {[%emt 0:00:00]} d6 {[%emt 0:00:00]} 4. g3 {[%emt 0:01:30]} Bg7 {[%emt 0:00:00]} 5. Bg2 {[%emt 0:00:30]} O-O {[%emt 0:00:30]} 6. Nc3 {[%emt 0:00:30]} Nc6 {[%emt 0:00:30]} 7. O-O {[%emt 0:00:30]} a6 {[%emt 0:00:00]} 8. b3 {[%emt 0:05:30]} Rb8 {[%emt 0:01:00]} 9. Nd5 {[%emt 0:00:30]} Bg4 {[%emt 0:19:30]} 10. Bb2 {[%emt 0:05:30] E63: King's Indian: Fianchetto: Panno Variation with 7...a6} (10. Nxf6+ Bxf6 11. Bb2 Qc8 12. Qd2 Qf5 13. Rac1 Bxf3 14. exf3 e6 15. h4 Bg7 16. d5 Bxb2 17. Qxb2 exd5 18. cxd5 Qxd5 {½-½ (62) Swiercz,D (2669)-Neef,M (2463) Barcelona 2018}) 10... b5 {[%emt 0:23:30] LiveBook: 4 Games} 11. Ne3 {[%emt 0:09:30]} bxc4 {[%emt 0:04:30]} 12. Nxc4 {[%emt 0:01:30]} Nb4 $146 {[%emt 0:04:30]} ({Predecessor:} 12... Qd7 13. Re1 Bh3 14. Bh1 Be6 15. Rc1 Bh6 16. e3 Nb4 17. a3 Nc6 {1-0 (26) Harika,D (2524)-Sigfusson,S (2336) Reykjavik 2011}) 13. Ne1 {[%emt 0:11:30]} Qd7 {[%emt 0:02:30]} 14. Nd3 {[%emt 0:08:30]} Nxd3 {[%emt 0:02:30]} 15. Qxd3 {[%emt 0:00:30]} Bh3 {[%emt 0:01:30]} 16. Rfe1 {[%emt 0:06:30]} Bxg2 {[%emt 0:01:30]} 17. Kxg2 {[%emt 0:00:00]} Rb5 {[%emt 0:01:30]} 18. h3 {[%emt 0:02:00]} c5 {[%emt 0:02:30]} (18... Rfb8 $11) 19. d5 {[%emt 0:02:30]} Ra8 {[%emt 0:06:30]} 20. e4 {[%emt 0:07:30]} h5 {[%emt 0:03:30]} 21. Rad1 {[%emt 0:01:30]} Qb7 {[%emt 0:07:57]} 22. Qf3 {[%emt 0:07:30]} Ne8 {[%emt 0:07:59]} 23. e5 {[%emt 0:09:07]} dxe5 {[%emt 0:01:40]} 24. Bxe5 {[%emt 0:01:07]} a5 {[%emt 0:01:25]} 25. Re3 $16 {[%emt 0:09:10]} (25. g4 $18 {is more deadly.}) 25... a4 {[%emt 0:01:04]} 26. Rde1 {[%emt 0:02:29]} Bf8 {[%emt 0:00:24]} 27. g4 {[%emt 0:00:48]} h4 {[%emt 0:01:16]} 28. g5 {[%emt 0:00:39]} axb3 {[%emt 0:00:09]} 29. axb3 {[%emt 0:00:06]} Rd8 {[%emt 0:00:54]} 30. Rd3 {[%emt 0:01:14]} Bg7 {[%emt 0:02:28]} 31. Kg1 {[%emt 0:02:00]} Bf8 {[%emt 0:01:41]} 32. Re4 {[%emt 0:01:03]} Bg7 {[%emt 0:01:29]} 33. Rxh4 {[%emt 0:01:29]} Rb4 {[%emt 0:00:25]} 34. Rf4 {[%emt 0:01:08]} Rxc4 {[%emt 0:00:25]} 35. bxc4 {[%emt 0:02:02]} Bxe5 {[%emt 0:00:03]} 36. Re4 {[%emt 0:00:21]} Bd6 {[%emt 0:00:52]} 37. Rb3 {[%emt 0:00:05]} Qd7 {[%emt 0:00:24]} 38. Qg4 {[%emt 0:00:29]} Qa4 {[%emt 0:00:35]} 39. Rf3 {[%emt 0:01:00]} Ng7 {[%emt 0:00:12]} 40. h4 {[%emt 0:00:06]} Qd1+ {[%emt 0:00:49]} 41. Kg2 {[%emt 0:00:05]} Rb8 {[%emt 0:00:12]} 42. Rfe3 {[%emt 0:00:17]} Qa1 {[%emt 0:00:41]} 43. Re1 {[%emt 0:00:15]} Qa2 {[%emt 0:00:00]} 44. R1e2 {[%emt 0:00:20]} Qa5 {[%emt 0:00:18]} 45. Qd7 {[%emt 0:00:42]} Rd8 {[%emt 0:00:32]} 46. Qg4 {[%emt 0:00:57]} Nh5 {[%emt 0:00:18]} 47. f4 {[%emt 0:01:11]} Rb8 {[%emt 0:00:36]} 48. f5 {[%emt 0:01:06]} Rb3 {[%emt 0:00:27]} 49. f6 {[%emt 0:00:03]} Rg3+ {[%emt 0:00:29]} 50. Qxg3 {[%emt 0:00:05]} Nxg3 {[%emt 0:00:03]} 51. fxe7 {[%emt 0:00:07]} Bxe7 {[%emt 0:00:07]} 52. Kxg3 {[%emt 0:00:10]} Bd6+ {[%emt 0:00:09]} 53. Kg2 {[%emt 0:00:15]} Kg7 {[%emt 0:00:06]} 54. R2e3 {[%emt 0:01:03]} Qd2+ {[%emt 0:00:48]} 55. Re2 {[%emt 0:00:06]} Qc3 {[%emt 0:00:14]} 56. R2e3 {[%emt 0:00:06]} Qa5 {[%emt 0:00:31]} 57. Re2 {[%emt 0:00:16]} Qc7 {[%emt 0:01:32]} 58. R2e3 {[%emt 0:00:41]} Qd7 {[%emt 0:00:08]} 59. Rf3 {[%emt 0:00:30]} Qa4 {[%emt 0:01:40]} 60. Rfe3 {[%emt 0:00:22]} Qa5 {[%emt 0:00:06]} 61. Re2 {[%emt 0:00:21]} Bb8 {[%emt 0:00:28]} 62. R2e3 {[%emt 0:01:56]} Qc7 {[%emt 0:00:36]} 63. Rh3 {[%emt 0:00:42]} Qd6 {[%emt 0:00:13]} 64. Kg1 {[%emt 0:00:45]} Qb6 {[%emt 0:01:00]} 65. Rhe3 {[%emt 0:00:10]} Qa5 {[%emt 0:00:33]} 66. Kg2 {[%emt 0:00:44]} Qa4 {[%emt 0:00:43]} 67. Re2 {[%emt 0:00:16]} Qd7 {[%emt 0:00:17]} 68. Rf2 {[%emt 0:01:12]} Qd6 {[%emt 0:00:07]} 69. Rf3 {[%emt 0:00:34]} Qh2+ {[%emt 0:00:22]} 70. Kf1 {[%emt 0:00:03]} Bg3 {[%emt 0:00:58]} 71. Ree3 {[%emt 0:01:11]} Bxh4 {[%emt 0:01:08]} 0-1